Cogmind - Beta 15 @@@ ROGUE MODE // 2025.10.20 @ 20:43:48 Player: opdo Result: Destroyed by G-34 Mercenary with Small Laser Performance ------------- Evolutions (0) 0 Regions Visited (2) 400 Robots Destroyed (8) 40 Value Destroyed (209) 209 Prototype IDs (0) 0 Alien Tech Used (0) 0 Bonus (0) 0 TOTAL SCORE: 649 Bonus ------- None Cogmind --------- Core Integrity 0/250 Matter 215/300 Energy 156/160 System Corruption 0% Temperature Hot (257) Movement Walking (120) Location -10/Mines Parts ------- > --- POWER (1) -------- Light Nuclear Core > --- PROPULSION (2) --- Aluminum Leg Aluminum Leg > --- UTILITY (2) ------ Medium Storage Unit Utility Shielding > --- WEAPON (2) ------- Small Laser Particle Gun > --- INVENTORY (10) --- Ion Engine Aluminum Leg Compact Wheel Small Storage Unit Structural Scanner Signal Interpreter Improved Terrain Scanner Tractor Beam Light Assault Rifle Mining Laser Peak State ------------ > --- POWER ------------ Light Nuclear Core > --- PROPULSION ------- Aluminum Leg Aluminum Leg > --- UTILITY ---------- Medium Storage Unit Utility Shielding > --- WEAPON ----------- Particle Gun Light Assault Rifle > --- INVENTORY -------- Ion Engine Aluminum Leg Compact Wheel Small Storage Unit Structural Scanner Signal Interpreter Improved Terrain Scanner Tractor Beam Small Laser Mining Laser [Rating: 11] Favorites ----------- Power Ion Engine Engine Ion Engine Power Core Light Nuclear Core Propulsion Light Treads Treads Light Treads Leg Aluminum Leg Utility Medium Storage Unit Device Structural Scanner Storage Medium Storage Unit Protection Utility Shielding Weapon Assault Rifle Energy Gun Small Laser Ballistic Gun Assault Rifle Build | -11 -10 -10 ------- Run | Yrd Mat Min Slots Evolved . | . . . Power . | . . . Propulsion . | . . . Utility . | . . . Weapon . | . . . Parts Attached 16 | 6 4 6 Power 2 | 1 . 1 Engine 1 | 1 . . Core 1 | . . 1 Reactor . | . . . Propulsion 4 | 2 . 2 Treads 2 | 2 . . Leg 2 | . . 2 Wheel . | . . . Hover . | . . . Flight . | . . . Utility 5 | 2 2 1 Device 2 | 1 1 . Storage 2 | 1 1 . Processor . | . . . Hackware . | . . . Protection 1 | . . 1 Artifact . | . . . Weapon 5 | 1 2 2 Energy Gun 2 | . . 2 Energy Cannon . | . . . Ballistic Gun 3 | 1 2 . Ballistic Cannon . | . . . Launcher . | . . . Special Weapon . | . . . Impact Weapon . | . . . Slashing Weapon . | . . . Piercing Weapon . | . . . Special Melee Weapon . | . . . Unidentified Prototypes . | . . . Parts Lost 5 | . 4 1 Power 1 | . 1 . Propulsion 2 | . 1 1 Utility . | . . . Weapon 2 | . 2 . Highest Loss Streak 4 | . 4 1 To Critical Strikes . | . . . Average Backups 7 | 3 6 9 Power . | . 1 1 Propulsion 1 | 1 2 2 Utility 2 | . 2 5 Weapon 1 | 1 1 1 Tool/Special . | . . . Unused Backups 6 | . . 6 Power 1 | . . 1 Propulsion 2 | . . 2 Utility 2 | . . 2 Weapon 1 | . . 1 Tool/Special . | . . . Average Slot Usage (%) 92 | . 95 87 Engine 7 | . 14 . Core 4 | . . 9 Treads 16 | . 27 4 Leg 8 | . . 18 Device 9 | . 14 4 Storage 14 | . 14 14 Protection 4 | . . 10 Energy Gun 9 | . . 20 Ballistic Gun 16 | . 24 6 Peak Build Rating 11 | 8 9 11 Average Rating 8 | 4 8 9 On Entrance 4 | . 8 5 Naked Turns . | . . . Heaviest Build 20 | 13 20 20 Greatest Support 40 | 40 40 20 Greatest Overweight (x) 2 | 2 . . Average Overweight (x) . | . . . Largest Inventory Capacity 10 | 8 10 10 Average Capacity 9 | 7 9 10 Most Carried 10 | 5 10 10 Average Carried 7 | 3 6 9 Final Capacity 10 | 8 10 10 Final Carried 10 | 5 10 10 Class Distribution -------------------- 100% | Mutant Dominant Class ---------------- Mutant | -10/Materials Mutant | -10/Mines Resources | -11 -10 -10 ----------- Run | Yrd Mat Min Matter Collected 378 | 214 47 117 Remotely . | . . . Salvage Created 236 | 39 104 93 Parts 12 | 3 5 4 Haulers Intercepted . | . . . Recyclers Shooed 1 | 1 . . Parts Field Recycled . | . . . Retrieved Matter . | . . . Parts Self-Destructed . | . . . Prevented . | . . . Kills | -11 -10 -10 ------- Run | Yrd Mat Min Combat Hostiles Destroyed 6 | . 4 2 Guns 6 | . 4 2 Classes Destroyed 3 | 1 2 . Tunneler 2 | 2 . . Swarmer 2 | . 2 . Grunt 4 | . 2 2 Best Kill Streak 2 | 2 2 1 Combat Bots Only 2 | . 2 1 Max Kills in Single Turn 1 | 1 1 1 Gunslinging . | . . . Exploded . | . . . Melee . | . . . Uniques/NPCs Destroyed . | . . . Combat | -11 -10 -10 -------- Run | Yrd Mat Min Hostile Shots Fired 122 | . 104 18 Missed 34 | . 28 6 Hits 88 | . 76 12 Projectile 88 | . 76 12 Critical Strikes 1 | . 1 . Damage Taken 958 | . 780 178 Core 252 | . 194 58 Absorbed by Shields . | . . . Core Remaining (%) 100 | 100 . . Volleys Fired 35 | 6 17 12 Largest 2 | 1 2 2 Hottest 105 | 20 40 105 Shots Fired 64 | 6 34 24 Gun 64 | 6 34 24 Cannon . | . . . Launcher . | . . . Special . | . . . Kinetic 47 | 6 34 7 Thermal 17 | . . 17 Explosive . | . . . Electromagnetic . | . . . Robot Hit Streak 12 | 6 12 9 Robot Miss Streak 2 | . 2 2 Penetration Max . | . . . Secondary Targets 3 | . 2 1 Max Gunslinging Chain 1 | . 1 1 Shots Hit Robots 51 | 6 26 19 Core Hits 19 | 3 8 8 Critical Kills . | . . . Critical Parts Destroyed . | . . . Critical Strikes . | . . . Melee Attacks . | . . . Impact . | . . . Slashing . | . . . Piercing . | . . . Sneak Attacks . | . . . Combat Hostiles . | . . . Follow-up Attacks . | . . . Damage Inflicted 597 | 72 319 206 Guns 585 | 72 311 202 Cannons . | . . . Explosions . | . . . Melee . | . . . Ramming 12 | . 8 4 Kinetic 433 | 72 311 50 Thermal 152 | . . 152 Explosive . | . . . Electromagnetic . | . . . Impact . | . . . Slashing . | . . . Piercing . | . . . Highest Corruption . | . . . Average Corruption . | . . . Corruption Purged . | . . . Corruption Blocked . | . . . Overload Shots . | . . . Overflow Damage . | . . . Projectiles . | . . . Explosions . | . . . Melee . | . . . Knockbacks . | . . . Impact . | . . . Kinetic . | . . . Secondary . | . . . Self-Inflicted Damage . | . . . Shots . | . . . Rammed 2 | . 2 . Targets Rammed 3 | . 2 1 Kicked 1 | . . 1 Crushed . | . . . Highest Temperature 251 | . 9 251 Average Temperature 50 | . 2 65 Received Heat Transfer 372 | . 273 99 Siege Activations . | . . . Martial Activations . | . . . Shielding Activations . | . . . Robots Disrupted . | . . . Combat Hostiles . | . . . Robots Corrupted . | . . . Combat Hostiles . | . . . Parts Fried . | . . . Impact Corruptions . | . . . Robots Melted . | . . . Combat Hostiles . | . . . Parts Melted 1 | . . 1 Heat Transferred 360 | . . 360 Parts Sabotaged . | . . . Parts Stolen . | . . . Parts Stripped . | . . . Power Chain Reactions . | . . . Alert | -11 -10 -10 ------- Run | Yrd Mat Min Maximum Alert Level . | . . . Low Security (%) 100 | 100 100 100 Level 1 . | . . . Level 2 . | . . . Level 3 . | . . . Level 4 . | . . . Level 5 . | . . . High Security . | . . . Max Security . | . . . Peak Influence 51 | 10 51 45 Initial . | . . . Average 8 | . 11 8 Influence Increases 176 | 10 91 75 Destroy 0b10 Robot/C 120 | . 80 40 Destroy 0b10 Robot/NC 10 | 10 . . Destroy Leader 30 | . 10 20 Destroy Structure 1 | . 1 . Lose Combat Pursuer 15 | . . 15 Influence Decreases 146 | 10 91 45 Time Decay 126 | 10 71 45 Lost Part 20 | . 20 . Squads Dispatched 1 | . 1 . Investigation . | . . . Extermination . | . . . Reinforcement 1 | . 1 . Assault . | . . . Garrison . | . . . Intercept . | . . . Searches Triggered . | . . . Construction Impeded . | . . . Haulers Reinforced . | . . . Active Scanning Responses . | . . . Cargo Convoy Interrupts . | . . . Stealth | -11 -10 -10 --------- Run | Yrd Mat Min Distress Signals . | . . . Communications Jammed . | . . . Distress Signals . | . . . Times Spotted 16 | . 12 4 Peak Tracking Total 6 | . 6 2 Tactical Retreats 1 | . . 1 Traps | -11 -10 -10 ------- Run | Yrd Mat Min Traps Triggered . | . . . Indirectly . | . . . Trap Hack Attempts . | . . . Triggered . | . . . Disarmed . | . . . Reprogrammed . | . . . Reused . | . . . Traps Extracted . | . . . Installed . | . . . Triggered . | . . . Machines | -11 -10 -10 ---------- Run | Yrd Mat Min Machines Disabled . | . . . Max in Single Turn . | . . . Machines Repaired . | . . . Machines Dismantled . | . . . Machines Sabotaged . | . . . Overloaded Fab Kills . | . . . Hacking | -11 -10 -10 --------- Run | Yrd Mat Min Machines Accessed 1 | . 1 . Terminals 1 | . 1 . Fabricators . | . . . Repair Stations . | . . . Recycling Units . | . . . Scanalyzers . | . . . Garrison Access . | . . . Total Hacks 4 | . 4 . Successful 3 | . 3 . Failed 1 | . 1 . Catastrophic . | . . . Database Lockouts . | . . . Manual 4 | . 4 . Terminals 4 | . 4 . Fabricators . | . . . Repair Stations . | . . . Recycling Units . | . . . Scanalyzers . | . . . Garrison Access . | . . . Terminal Hacks 1 | . 1 . Terminal Index 1 | . 1 . Fabricator Hacks . | . . . Repair Station Hacks . | . . . Recycling Unit Hacks . | . . . Scanalyzer . | . . . Garrison Access Hacks . | . . . Unauthorized Hacks 2 | . 2 . Terminals 2 | . 2 . Botnet 1 | . 1 . Skim 1 | . 1 . Fabricators . | . . . Repair Stations . | . . . Recycling Units . | . . . Scanalyzers . | . . . Garrison Access . | . . . Data Cores Recovered . | . . . Used . | . . . Hacking Detections 1 | . 1 . Full Trace Events . | . . . Feedback Events . | . . . Feedback Blocked . | . . . Robot Schematics Acquired . | . . . Robots Built . | . . . Authchips . | . . . Time . | . . . Total Robot Build Rating . | . . . Part Schematics Acquired . | . . . Parts Built . | . . . Authchips . | . . . Time . | . . . Total Part Build Rating . | . . . Parts Repaired . | . . . Time . | . . . Parts Recycled . | . . . Recycled Matter . | . . . Retrieved Matter . | . . . Retrieved Components . | . . . Parts Scanalyzed . | . . . Part Schematics Acquired . | . . . Parts Damaged . | . . . Bothacking | -11 -10 -10 ------------ Run | Yrd Mat Min Used RIF Installer . | . . . Robots Hacked . | . . . Non-combat . | . . . Combat . | . . . Robot Hacks Applied . | . . . Relay Couplers Released . | . . . Fabnet Peak Effective % . | . . . Robots Rewired . | . . . Allies Hacked . | . . . Hacks Repelled . | . . . Allies | -11 -10 -10 -------- Run | Yrd Mat Min Total Allies . | . . . Largest Group . | . . . Highest-Rated Group . | . . . Highest-Rated Ally . | . . . Total Orders . | . . . Ally Attacks . | . . . Total Damage . | . . . Kills . | . . . Allies Corrupted . | . . . Allies Melted . | . . . Intel | -11 -10 -10 ------- Run | Yrd Mat Min Active Infowar (turns) 401 | 18 314 69 Terrain 173 | 18 155 . Structural 228 | . 159 69 Robot Analysis Total . | . . . Derelict Logs Recovered 1 | . . 1 Drone Launches . | . . . Drone Recoveries . | . . . Exploration | -11 -10 -10 ------------- Run | Yrd Mat Min Turns Passed 695 | 109 314 272 Spaces Moved 382 | 56 152 174 Core 12 | 12 . . Treads 237 | 44 152 41 Legs 133 | . . 133 Wheels . | . . . Hover . | . . . Flight . | . . . Fastest Speed 50 | 50 160 120 Average Speed 144 | 149 160 129 Slowest Speed 160 | 160 160 160 Overloaded Moves . | . . . Propulsion Burnouts . | . . . Robots Hopped . | . . . Potential Cave-ins . | . . . Cave-ins Triggered . | . . . Exploration Rate (%) 28 | 6 39 41 Regions Visited 2 Branch Regions 1 Pre-discovered Areas 1 | . . 1 Known Exits Taken . | . . . Unknown Exits Taken 2 | 1 1 . Scrap Searched 1 | . . 1 Spaces Dug . | . . . Terrain Destroyed . | . . . Melee . | . . . Projectile . | . . . AOE . | . . . Terrain Rammed . | . . . Walls Destroyed . | . . . Machines Disabled . | . . . Actions | -11 -10 -10 --------- Run | Yrd Mat Min Total 457 | 72 187 198 Wait 9 | . 7 2 Move 380 | 55 151 174 Hop . | . . . Pick Up 13 | 5 6 2 Fast Attach 7 | 6 . 1 Attach 5 | . 2 3 Detach . | . . . Swap 5 | . 2 3 Drop . | . . . Fire 35 | 6 17 12 Melee . | . . . Ram . | . . . Kick 1 | . . 1 Crush 2 | . 2 . Escape Stasis . | . . . Rewire . | . . . Trap . | . . . Miscellaneous . | . . . Route ------- -11/Scrapyard -10/Materials (discovered 2 exits: [*Mat] / [*Min]) -10/Mines (discovered 1 exit: [*Mat]) History --------- Turn | Location | Event 38 | -11/Scrapyard | Discovered new exit (range 14) 110 | -11/Scrapyard | Entered Materials 179 | -10/Materials | Discovered new exit (range 10) 305 | -10/Materials | Build established: Mutant 356 | -10/Materials | Discovered new exit (range 13) 412 | -10/Materials | Core integrity fell below 50% 424 | -10/Materials | Entered Mines 452 | -10/Mines | Lost 4 parts (1p1n2w) 508 | -10/Mines | Core integrity fell below 20% 554 | -10/Mines | Discovered new exit (range 5) 696 | -10/Mines | Destroyed by G-34 Mercenary with Small Laser Last Messages --------------- 00554_ EXIT=FOUND 00555_ A derelict emerges from the shadows: "What are you doing alone down here?" 00557_ UF-O59(g): "Well, at least you look like you can take care of yourself!" 00559_ UF-O59(g): "I have the funny feeling that things are about to get a lot worse around here, see you around!" 00559_ UF-O59(g) slips back into the shadows. 00577_ U-05 Engineer builds a Wall. 00577_ T-07 Excavator is excavating. 00590_ U-05 Engineer lays Concrete. 00590_ T-07 Excavator is excavating. 00597_ U-05 Engineer lays Concrete. 00599_ T-07 Excavator is excavating. 00600_ U-05 Engineer lays Concrete. 00604_ Kicked T-07 Excavator out of the way. 00695_ G-47 Trooper destroyed. 00695_ Switching to secondary target: G-34 Mercenary. Map ----- +----------------------------------------------------+ | #????????????????????????????????????????????? | | ##???????????????????????????????????????????? | | #???????????????????????????????????????????? | | #???????????????????????????????????????????? | | #????????????????????????????????????????????? | | #????????????????????????????????????????????? | | #????????????????????????????????????????????? | | ##############???????????????????????????????? | | ##############???????????????????????????????? | | # ##???????????????????????????????? | | # ##??????????????? ??????????????? | | # """" ##?????????????? ????????????? | | # """" ########??????? #????????????? | | # """" #?????# #?????????????? | | # #??## #??????????????? | | # """" """" ##### #?# ##??????????????? | | """" """" ##### ## #??????????????? | | # """" """" ##??# #??????????????? | | # ##??# #### #??????????????? | | #############???## ## ##??# #??????????????? | | ############?????# #?# #??## #??????????????? | | ?????????????????# #?# #?## #########??????? | | ?????????????????# #?# ### #??????? | | ?????????????????# ### ## #??????? | | ?????????????????# #?????????????? | | ?????????????????########@ #?????????????? | | ????????????????????????## #?????????????? | | ?????????????????????????##%g #?????????????? | | ??????????????????????????# #?????????????? | | ??????????????????????????# ##?????????????? | | ?????????????????????????? #??????????????? | | ????????????????????????? ??????????????? | | ???????????????????????? ?????????????? | | ???????????????????????? ????????????? | | ??????????????????????? ## ???????????? | | ?????????????????????? #?## $ ??????????? | | ????????????????????? #????### ##?????????? | | ????????????????????? #????????###??????????? | | ????????????????????###??????????????????????? | | ?????????????????????????????????????????????? | | ?????????????????????????????????????????????? | | ?????????????????????????????????????????????? | | ?????????????????????????????????????????????? | | ?????????????????????????????????????????????? | | ?????????????????????????????????????????????? | | ?????????????????????????????????????????????? | | ?????????????????????????????????????????????? | | ?????????????????????????????????????????????? | | ?????????????????????????????????????????????? | | ?????????????????????????????????????????????? | +----------------------------------------------------+ Best States ------------- Heat Dissipation 25 Energy Generation 14 Energy Capacity 250 Matter Stores 238 Matter Capacity 300 Sight Range 16 Terrain Scan Range 16 Terrain Scan Density 10 Utility Shielding 33 Evasion (%) 55 Recoil Reduction 2 Item Schematics ----------------- None Robot Schematics ------------------ None Fabricated ------------ Nothing Repaired ---------- Nothing Alien Tech Used ----------------- None Achievements -------------- None Challenges ------------ None Game ------ Seed LightTeslaStreamer Manual? 0 Play Time 00:04:20 Cumulative 106.9 hours Start 2025.10.20 @ 20:40:32 End 2025.10.20 @ 20:43:48 Sessions 1 Manual Loads 0 Difficulty Rogue Special Mode None Game No. 290 Rogue 288 Adventurer 2 Explorer 0 Win Type - Total 1 Types 1/0/0/0/0/0/0/0/0/0 Lore% 76 Gallery% 61 Achievement% 51 Wizard Run 0 Options --------- Layout 2 ASCII 0 Keyboard 0 Movement Numpad Keybinds 0 Fullscreen 2 Font 24/Smallcaps Map View 50x44 Zoom Use 0% Tactical HUD 1 Map Filters NONE Filters NONE Steam 1 RUN: ad7eef8c-fd61-42a8-8138-21de418ba7c6